bitfinex/quotes_ETHUSD_20250404
["timestamp","ask_amount","ask_price","bid_price","bid_amount"]
[1743761325272,5.48948,1821.7,1821.1,0.1]
[1743761325472,6.6048,1821.9,1821.3,5.49039]
[1743761325995,12.09372,1821.9,1821.4,0.054896]
[1743761326182,5.48909,1821.8,1821.3,0.7551]
[1743761326603,17.58273,1821.9,1821.3,0.7551]
[1743761326808,17.58273,1821.9,1821.3,1.379679]
[1743761327510,12.09372,1821.9,1821.3,1.379679]
[1743761327723,6.06,1821.9,1821.3,1.379679]
[1743761327888,11.54882,1821.9,1821.4,5.49023]
[1743761328324,6.06,1821.9,1821.4,5.49023]
[1743761328620,11.5489,1821.9,1821.3,12.71668]
[1743761328836,11.5489,1821.9,1821.3,12.70904036]
[1743761329010,17.03793,1821.9,1821.4,1.27090404]
[1743761329210,11.5489,1821.9,1821.4,1.27090404]
[1743761329526,5.4898,1821.6,1821.1,0.1]
[1743761330299,10.97929,1821.7,1821.1,5.59116]
[1743761330551,5.49034,1821.4,1821.1,0.1]
[1743761330843,10.98025,1821.5,1821.1,0.1]
[1743761330998,5.49001,1821.5,1821.1,0.1]
[1743761331198,0.5523,1821.7,1821.1,0.1]
[1743761331398,5.48993,1821.6,1821.1,0.1]
[1743761331616,5.48993,1821.6,1821.1,0.659147]
[1743761332039,5.49015,1821.5,1821.1,0.659147]
[1743761332248,5.49015,1821.5,1821.1,0.1]
[1743761333046,5.49031,1821.4,1821.1,0.1]
[1743761333203,5.49071,1821.3,1821.1,0.1]
[1743761333559,5.49088,1821.2,1821.1,0.1]
[1743761333852,6.59318,1821.2,1821.1,0.1]
[1743761333996,10.40373395,1821.2,1821.1,0.1]
[1743761335135,5.49214,1820.8,1820.1,12.78555]
[1743761335455,5.49214,1820.8,1820.2,5.49387]
[1743761335752,3.0,1820.9,1820.4,5.49318]
[1743761336047,13.98387,1820.9,1820.5,0.549318]
[1743761336230,5.49223,1820.8,1820.2,5.49361]
[1743761336547,5.49223,1820.8,1820.2,10.98737]
[1743761336712,5.49186,1820.9,1820.3,5.49358]
[1743761336920,5.49186,1820.9,1820.4,5.49329]
[1743761337231,8.49119,1821.1,1820.5,5.49277]
[1743761337549,8.49119,1821.1,1820.6,0.549277]
[1743761337731,5.4915,1821.0,1820.6,0.549277]
[1743761337917,5.4919,1820.9,1820.6,0.549277]
[1743761338106,5.4915,1821.0,1820.4,10.98636]
[1743761338428,5.49201,1820.9,1820.3,11.89758]
[1743761338734,5.49211,1820.8,1820.3,11.89758]
[1743761339834,5.49201,1820.9,1820.3,17.39101]
[1743761340045,5.492,1820.9,1820.4,7.232261]
[1743761340245,5.49219,1820.8,1820.4,1.739101]
[1743761340548,5.49201,1820.9,1820.4,1.739101]
[1743761340729,5.4924,1820.7,1820.2,5.49388]
[1743761340924,5.49272,1820.6,1820.1,6.35158]
[1743761341135,12.10503,1820.6,1820.1,0.1]
[1743761341329,10.98633,1820.5,1820.1,0.1]
[1743761341529,6.6123,1820.6,1820.1,5.59398]
[1743761341530,0.5523,1820.6,1820.1,5.59398]
[1743761341737,5.49299,1820.5,1820.1,0.659398]
[1743761342023,5.49299,1820.5,1820.1,0.1]
[1743761342222,5.49331,1820.4,1820.1,0.1]
[1743761342629,5.49362,1820.3,1820.1,0.1]
[1743761342858,5.4931,1820.5,1820.1,0.1]
[1743761343033,6.04503,1820.6,1820.1,5.59415]
[1743761343213,6.04503,1820.6,1820.1,0.1]
[1743761343214,3.85413641,1820.6,1820.1,0.1]
[1743761343419,3.0,1820.5,1820.1,5.59409]
[1743761343677,10.00150182,1820.9,1820.5,5.49299]
[1743761343860,3.0,1820.8,1820.4,5.49314]
[1743761344057,0.5523,1820.9,1820.1,0.1]
[1743761344259,8.49242,1820.7,1820.2,5.49376]
[1743761344464,8.49242,1820.7,1820.2,12.096265]
[1743761344672,3.0,1820.7,1820.2,1.108795]
[1743761344826,8.49261,1820.7,1820.2,1.108795]
[1743761345167,12.97063537,1821.0,1820.2,1.108795]
[1743761345168,6.06,1821.0,1820.6,5.49264]
[1743761345315,3.0,1821.0,1820.6,5.54749826]
[1743761345520,6.04348,1821.2,1820.4,7.186]
[1743761345521,0.5523,1821.2,1820.4,7.186]
[1743761345751,10.98278,1821.1,1820.6,5.49259]
[1743761345957,3.0,1821.0,1820.6,5.49259]
[1743761346269,5.49139,1821.1,1820.6,5.49251]
[1743761346420,3.0,1821.0,1820.6,5.49251]
[1743761346768,10.982,1821.2,1820.7,5.49235]
[1743761347067,5.49118,1821.1,1820.6,6.591198]
[1743761347372,8.49088,1821.2,1820.7,5.54713618]
[1743761347587,3.0,1821.2,1820.8,5.49197]
[1743761347745,3.0,1821.2,1820.8,6.25017]
[1743761347946,3.0,1821.2,1820.8,7.424409]
[1743761348191,3.0,1821.2,1820.5,5.49295]
[1743761348192,9.06,1821.2,1820.5,6.25112]
[1743761348494,5.49259,1820.7,1820.2,0.8188]
[1743761348638,5.49219,1820.8,1820.3,5.49353]
[1743761348841,5.49219,1820.8,1820.2,6.3126]
[1743761349041,8.4925,1820.7,1820.2,6.3126]
[1743761349357,4.398469,1820.7,1820.3,5.49358]
[1743761349543,4.398469,1820.7,1820.3,5.4934]
[1743761349750,5.49271,1820.6,1820.2,0.8188]
[1743761350078,15.47,1820.5,1820.2,5.49364]
[1743761350290,3.02420182,1820.3,1820.1,0.1]
[1743761350582,9.5962,1820.2,1820.1,0.1]
[1743761350782,12.57972618,1820.2,1820.1,0.1]
[1743761350988,18.07362618,1820.2,1820.1,0.1]
[1743761351372,49.73485218,1820.2,1820.1,0.1]
[1743761351699,49.73485218,1820.2,1819.1,0.1]
[1743761351700,0.5523,1819.2,1819.1,0.1]
[1743761351901,7.643192,1819.2,1819.1,0.1]
[1743761352190,0.86910537,1819.7,1819.1,0.1]
[1743761352191,6.06,1819.8,1819.5,5.4958]
[1743761352399,3.0,1820.0,1819.7,5.49522]
[1743761352695,12.02271,1820.3,1819.5,0.793]
[1743761353001,12.02261,1820.3,1819.5,1.421901]
[1743761353154,6.529,1820.3,1819.5,0.793]
[1743761353355,5.49524,1819.8,1819.2,6.28168]
[1743761353559,6.04651,1820.1,1819.2,6.28168]
[1743761353560,5.495,1819.9,1819.3,5.49637]
[1743761353740,5.49585,1819.6,1819.2,0.7849]
[1743761353940,8.49541,1819.7,1819.2,0.7849]
[1743761354140,3.0,1819.7,1819.3,5.49651]
[1743761354383,3.0,1819.8,1819.2,1.423099]
[1743761354587,8.49512,1819.8,1819.2,6.28162]
[1743761354738,5.49558,1819.7,1819.2,6.28162]
[1743761354946,8.49512,1819.8,1819.3,5.49651]
[1743761355154,8.49512,1819.8,1819.2,6.28162]
[1743761355345,5.49599,1819.6,1819.2,0.7849]
[1743761355563,5.49594,1819.6,1819.1,0.1]
[1743761355761,5.49612,1819.5,1819.1,0.659727]
[1743761357695,32.77633182,1819.2,1819.1,0.1]
[1743761358145,26.25133182,1819.2,1819.1,0.1]
[1743761358350,15.10922,1819.2,1819.1,0.1]
[1743761358546,9.06,1819.2,1819.1,0.1]
[1743761358776,14.55692,1819.2,1819.1,0.09776588]
[1743761358991,15.77710764,1819.2,1819.1,0.09776588]
[1743761359284,46.38513764,1819.2,1819.1,5.88e-06]
[1743761359469,46.48485882,1819.2,1819.1,5.88e-06]
[1743761359685,6.05081,1818.7,1818.2,5.49993]
[1743761359855,6.555,1818.6,1818.3,0.549993]
[1743761360207,6.555,1818.6,1818.1,5.60022]
[1743761360371,8.49815,1818.8,1818.2,5.49974]
[1743761360681,5.49904,1818.5,1818.1,0.1]
[1743761360982,5.49887,1818.6,1818.1,0.1]
[1743761361148,3.0,1818.8,1818.1,0.1]
[1743761361149,0.55,1818.7,1818.1,0.1]
[1743761361355,5.44971,1818.3,1818.1,0.1]
[1743761361572,5.49994,1818.2,1818.1,0.1]
[1743761361891,19.520003,1818.2,1818.1,0.1]
[1743761362183,14.55994,1818.2,1818.1,0.1]
[1743761362360,8.49954,1818.4,1818.1,0.1]
[1743761362570,3.0,1818.4,1818.1,0.1]
[1743761362771,6.06,1818.5,1818.1,0.1]
[1743761363085,6.06,1818.5,1818.2,6.3506681]
[1743761363260,6.593,1818.7,1818.3,5.49949]
[1743761363456,6.593,1818.7,1818.2,0.7959]
[1743761363668,6.593,1818.7,1818.2,6.93542]
[1743761363876,12.09156,1818.7,1818.2,6.93542]
[1743761364208,3.57650182,1819.0,1818.2,6.93539]
[1743761364379,8.49873,1818.6,1818.1,0.1]
[1743761364714,5.49934,1818.4,1818.1,0.1]
[1743761364865,5.49977,1818.3,1818.1,0.1]
[1743761365065,8.49994,1818.2,1818.1,0.1]
[1743761365283,10.505911,1818.2,1818.1,0.1]
[1743761366102,3.0,1818.2,1818.1,0.1]
[1743761366698,6.06,1818.3,1818.1,0.1]
[1743761366866,8.49894,1818.6,1818.1,5.60001]
[1743761367191,3.0,1818.4,1818.1,0.1]
[1743761368367,8.49949,1818.4,1818.1,0.1]
[1743761368591,3.0,1818.4,1818.1,0.1]
[1743761368913,5.49968,1818.3,1818.1,0.1]
[1743761369061,14.55936,1818.4,1818.1,0.1]
[1743761369260,14.55941,1818.4,1818.1,0.1]
[1743761369683,3.0,1818.4,1818.1,0.1]
[1743761370096,5.49886,1818.6,1818.1,5.60014]
[1743761370403,3.0,1818.4,1818.1,0.1]
[1743761370705,8.49937,1818.4,1818.1,0.1]
[1743761371068,8.49876,1818.6,1818.2,5.49986]
[1743761371263,3.0,1818.4,1818.1,0.1]
[1743761371469,18.63845,1818.7,1818.1,0.1]
[1743761371664,3.0,1818.6,1818.1,0.1]
[1743761371998,8.49889,1818.6,1818.1,5.60009]
[1743761372180,13.99789,1818.6,1818.1,5.60009]
[1743761372380,8.49889,1818.6,1818.1,5.60009]
[1743761372607,3.0,1818.4,1818.1,5.60009]
[1743761372990,8.49891,1818.6,1818.1,1.21006]
[1743761373183,8.49891,1818.6,1818.1,0.1]
[1743761373385,8.49891,1818.6,1818.1,5.6001]
[1743761373770,3.0,1818.6,1818.1,5.60008]
[1743761374100,3.0,1818.6,1818.4,5.49933]
[1743761374300,3.0,1818.6,1818.1,0.1]
[1743761374474,3.0,1818.6,1818.4,5.49923]
[1743761374674,5.49784,1818.9,1818.4,10.99843]
[1743761375076,8.49818,1818.8,1818.4,5.4992]
[1743761375283,8.49818,1818.8,1818.3,5.49954]
[1743761375509,5.49881,1818.6,1818.2,0.7898]
[1743761375712,5.49912,1818.5,1818.2,0.7898]
[1743761376005,5.49881,1818.6,1818.2,0.7898]
[1743761376302,5.49881,1818.6,1818.2,6.2897]
[1743761376504,5.49881,1818.6,1818.1,5.60006]
[1743761376505,5.49947,1818.4,1818.1,0.1]
[1743761376706,3.55,1818.5,1818.1,5.60006]
[1743761376707,3.0,1818.5,1818.1,5.60006]
[1743761376877,3.0,1818.7,1818.4,6.24986]
[1743761377076,3.0,1818.7,1818.4,0.7506]
[1743761377376,11.55735,1819.1,1818.7,5.49834]
[1743761377601,13.38479876,1819.1,1818.6,5.49861]
[1743761377806,8.49755,1819.0,1818.6,5.49861]
[1743761377990,5.49755,1819.0,1818.5,5.49902]
[1743761378321,3.0,1818.9,1818.6,5.49847]
[1743761378612,6.06,1819.1,1818.7,5.49829]
[1743761378782,6.06,1819.1,1818.8,6.30757]
[1743761378982,5.49666,1819.3,1818.8,11.80555]
[1743761379201,0.64852281,1819.3,1818.9,5.49773]
[1743761379403,6.06,1819.5,1819.0,0.05497491]
[1743761379612,45.08372,1819.6,1819.1,0.8188]
[1743761379791,3.0,1819.5,1819.1,0.8188]
[1743761380112,3.0,1819.5,1818.5,0.7826]
[1743761380113,0.5523,1819.5,1818.5,0.7826]
[1743761380312,3.0,1819.0,1818.5,0.7826]
[1743761380608,5.49692,1819.2,1818.5,0.7826]
[1743761380609,5.49732,1819.1,1818.5,0.7826]
[1743761380815,5.49692,1819.2,1818.5,1.410783]
[1743761380985,5.49692,1819.2,1818.6,0.7979]
[1743761381185,3.0,1819.3,1818.6,0.7979]
[1743761381186,5.4977,1819.0,1818.6,0.7979]
[1743761381399,5.498,1818.9,1818.6,0.7979]
[1743761382313,5.49824,1818.8,1818.6,0.7979]
[1743761382513,11.55764,1819.0,1818.6,0.7979]
[1743761382721,10.99595,1818.9,1818.6,0.7979]
[1743761383018,5.49813,1818.8,1818.3,1.3317]
[1743761383221,5.49885,1818.6,1818.3,1.3317]
[1743761383382,5.49934,1818.4,1818.3,1.3317]
[1743761384505,8.49934,1818.4,1818.3,0.55]
[1743761384708,10.449106,1818.4,1818.3,0.55]
[1743761385013,6.04934,1818.4,1818.3,0.55]
[1743761385228,14.93234,1818.4,1818.3,0.55]
[1743761385426,15.48234,1818.4,1818.3,0.55]
[1743761385993,14.93234,1818.4,1818.3,0.55]
[1743761386295,15.48234,1818.4,1818.3,0.55]
[1743761386495,18.18649,1818.4,1818.3,0.55]
[1743761386829,18.73879,1818.4,1818.3,0.55]
[1743761387327,24.79879,1818.4,1818.3,1e-05]
[1743761389205,5.49994,1818.2,1818.1,1e-05]
[1743761389534,19.58911182,1818.2,1818.1,1e-05]
[1743761389734,0.5523,1818.0,1817.1,0.1]
[1743761389946,12.07717182,1817.2,1817.1,0.1]
[1743761390236,16.92619518,1817.2,1817.1,0.1]
[1743761390406,23.37119518,1817.2,1817.1,0.1]
[1743761390613,21.55797,1817.2,1817.1,0.05]
[1743761390948,18.68947182,1817.2,1817.1,0.05]
[1743761391234,22.39602182,1817.2,1817.1,0.05]
[1743761391647,22.39602182,1817.2,1816.2,0.8205]
[1743761391946,8.52925182,1816.6,1816.1,0.1]
[1743761392145,9.05443,1816.8,1816.1,0.1]
[1743761392146,5.50478,1816.7,1816.1,0.1]
[1743761392312,5.50404,1816.9,1816.2,0.8051]
[1743761392495,10.019,1817.0,1816.2,0.8051]
[1743761392496,5.50422,1816.8,1816.2,0.8051]
[1743761392692,5.50451,1816.7,1816.2,0.8051]
[1743761393128,5.50531,1816.5,1816.2,1.446226]
[1743761393293,5.50531,1816.5,1816.2,0.8051]
[1743761393498,5.50578,1816.3,1816.1,0.1]
[1743761393929,5.506,1816.2,1816.1,0.1]
[1743761394601,8.506,1816.2,1816.1,0.1]
[1743761395132,3.0,1816.5,1816.1,0.1]
[1743761395333,8.50521,1816.5,1816.2,0.7999]
[1743761395537,5.50514,1816.5,1816.2,0.7999]
[1743761395995,11.01049,1816.5,1816.1,0.1]
[1743761396202,5.506,1816.2,1816.1,0.1]
[1743761396533,5.50593,1816.3,1816.1,0.1]
[1743761397230,8.506,1816.2,1816.1,0.1]
[1743761397434,3.0,1816.2,1816.1,0.1]
[1743761397827,8.506,1816.2,1816.1,0.1]
[1743761398135,3.0,1816.2,1816.1,0.1]
[1743761398438,12.025735,1816.2,1816.1,0.1]
[1743761398639,14.68732868,1816.2,1816.1,0.1]
[1743761399010,20.74732868,1816.2,1816.1,1e-05]
[1743761399831,18.32989368,1816.2,1816.1,1e-05]
[1743761400241,31.49314668,1816.2,1816.1,1e-05]
[1743761400438,11.566,1816.2,1816.1,1e-05]
[1743761400609,3.0,1816.4,1816.1,1e-05]
[1743761400939,6.06,1816.6,1816.1,1e-05]
[1743761401140,5.50557,1816.4,1816.2,0.8139]
[1743761401433,5.506,1816.2,1816.1,1e-05]
[1743761401998,6.607169,1816.2,1816.1,1e-05]
[1743761402200,12.9116035,1816.6,1816.2,0.777]
[1743761402201,6.06,1816.6,1816.2,0.777]
[1743761402521,5.5051,1816.5,1816.1,1e-05]
[1743761402725,5.50468,1816.7,1816.1,1e-05]
[1743761402922,5.50448,1816.7,1816.2,0.8267]
[1743761403432,5.50382,1817.0,1816.5,6.33162]
[1743761403607,5.50329,1817.1,1816.6,0.633162]
[1743761403802,5.50244,1817.4,1816.9,0.7755]
[1743761404005,5.50308,1817.2,1817.0,0.05502782]
[1743761404205,5.50207,1817.5,1817.0,5.55841782]
[1743761404416,5.50249,1817.4,1816.9,6.27924]
[1743761404627,5.50207,1817.5,1817.0,6.131374]
[1743761404830,5.50207,1817.5,1817.2,0.7544]
[1743761405039,0.28516141,1818.1,1817.2,0.7544]
[1743761405244,3.02420182,1818.3,1817.2,6.25735]
[1743761405407,5.50126,1817.8,1817.3,5.50244]
[1743761405607,4.18806335,1818.1,1817.2,2.027135]
[1743761405608,6.02420182,1818.0,1817.2,2.027135]
[1743761405933,5.50116,1817.8,1817.3,5.50254]
[1743761406243,5.50208,1817.5,1817.2,0.7544]
[1743761406408,5.50249,1817.4,1817.2,0.7544]
[1743761406743,5.50371,1817.0,1816.8,0.7608]
[1743761406935,5.50388,1816.9,1816.8,0.7608]
[1743761407239,11.97268,1817.3,1816.8,0.7608]
[1743761407442,5.50297,1817.2,1816.8,0.7608]
[1743761407604,8.32491818,1817.3,1816.8,0.7608]
[1743761407605,5.50355,1817.1,1816.8,0.7608]
[1743761407807,5.50274,1817.3,1816.8,0.7608]
[1743761408007,5.50286,1817.3,1816.8,11.76887]
[1743761408247,5.50286,1817.3,1816.9,1.176887]
[1743761408542,5.50268,1817.3,1816.9,6.680717]
[1743761408742,11.56204,1817.6,1816.9,1.176887]
[1743761408941,5.50158,1817.7,1817.2,5.50273]
[1743761409149,5.50182,1817.6,1817.3,0.05501771]
[1743761409611,5.50182,1817.6,1817.1,11.00629]
[1743761409809,5.50182,1817.6,1817.1,5.5031]
[1743761410013,5.50182,1817.6,1817.1,5.50307]
[1743761410313,5.50182,1817.6,1817.2,5.50296]
[1743761410748,5.50182,1817.6,1817.1,11.638137]
[1743761410965,5.50182,1817.6,1817.2,5.50296]
[1743761411259,5.50182,1817.6,1817.1,11.638157]
[1743761411556,5.50182,1817.6,1817.2,5.50292]
[1743761412121,5.50117,1817.8,1817.3,5.50242]
[1743761412442,3.0,1817.9,1817.4,5.50226]
[1743761412646,5.50162,1817.7,1817.2,7.4394357]
[1743761412809,5.50117,1817.8,1817.3,5.50238]
[1743761413010,6.02420182,1817.9,1817.2,0.7728]
[1743761413352,5.50199,1817.6,1817.2,6.27567]
[1743761413511,5.50167,1817.7,1817.2,6.27565]
[1743761413712,5.50176,1817.6,1817.2,6.27565]
[1743761414220,5.5006,1818.0,1817.4,0.8267]
[1743761414420,12.68848335,1818.1,1817.6,5.50174]
[1743761414759,5.50055,1818.0,1817.5,5.50196]
[1743761414916,11.0013,1818.0,1817.5,6.685058]
[1743761415118,5.5009,1817.9,1817.4,6.32902]
[1743761415328,5.5009,1817.9,1817.4,11.83126]
[1743761415528,11.00195,1817.9,1817.4,6.32892]
[1743761415832,11.00195,1817.9,1817.4,0.8267]
[1743761416044,5.50119,1817.8,1817.4,0.8267]
[1743761416261,5.5009,1817.9,1817.4,0.8267]
[1743761416262,5.5009,1817.9,1817.4,6.961976]
[1743761416556,5.50206,1817.5,1817.4,0.8267]
[1743761416922,5.50247,1817.4,1817.0,0.7792]
[1743761417128,5.50327,1817.1,1817.0,0.7792]
[1743761417748,5.50258,1817.4,1817.0,0.7792]
[1743761417949,5.50208,1817.5,1817.0,6.28264]
[1743761418148,11.00434,1817.5,1817.1,0.628264]
[1743761418340,11.00434,1817.5,1817.0,6.28264]
[1743761418341,5.50247,1817.4,1817.0,0.7792]
[1743761418662,11.90948,1817.7,1817.0,6.28258]
[1743761418663,5.50207,1817.5,1817.0,6.28258]
[1743761419529,5.5024,1817.4,1817.0,6.28258]
[1743761419852,5.50207,1817.5,1817.0,6.28258]
[1743761420049,5.50327,1817.1,1817.0,0.7792]
[1743761420434,6.419,1817.1,1816.4,6.30628]
[1743761420634,7.519644,1817.1,1816.4,0.8009]
[1743761420847,5.50374,1817.0,1816.5,5.50482]
[1743761421160,11.00676,1817.1,1816.6,5.50463]
[1743761421364,5.50328,1817.1,1816.7,6.35890221]
[1743761421561,5.50358,1817.0,1816.7,0.7995]
[1743761422264,1.100689,1817.0,1816.3,6.29248]
[1743761422574,5.5036,1817.0,1816.3,0.7869]
[1743761422816,5.50491,1816.6,1816.3,0.7869]
[1743761423019,6.439,1816.9,1816.3,0.7869]
[1743761423163,6.439,1816.9,1816.1,1e-05]
[1743761423164,5.50593,1816.3,1816.1,1e-05]
[1743761423358,5.50517,1816.5,1816.1,0.05506995]
[1743761423593,5.50481,1816.6,1816.2,5.50599]
[1743761423916,11.00982,1816.6,1816.1,5.50617]
[1743761424102,5.50509,1816.5,1816.1,1e-05]
[1743761424264,5.50448,1816.7,1816.1,1e-05]
[1743761424463,5.50596,1816.3,1816.1,1e-05]
[1743761424972,5.50507,1816.6,1816.1,5.50617]
[1743761425195,5.50544,1816.4,1816.1,1e-05]
[1743761425762,5.506,1816.2,1816.1,1e-05]
[1743761426889,16.054199,1816.2,1816.1,1e-05]
[1743761427486,19.63070082,1816.2,1816.1,1e-05]
[1743761427688,20.18070082,1816.2,1816.1,1e-05]
[1743761427901,27.6629042,1816.2,1816.1,1e-05]
[1743761428064,27.03736432,1816.2,1816.1,1e-05]
[1743761428267,18.69250182,1816.2,1816.1,1e-05]
[1743761428466,24.58550182,1816.2,1816.1,1e-05]
[1743761428787,0.55,1816.5,1816.1,1e-05]
[1743761428788,8.52945182,1816.5,1816.1,1e-05]
[1743761429113,12.11691,1816.7,1816.2,5.50593]
[1743761429262,7.0819,1816.8,1816.3,5.5055]
[1743761429899,5.50429,1816.8,1816.3,1.10115]
[1743761430203,51.19214,1816.9,1816.3,6.60684]
[1743761430505,39.628,1816.9,1816.6,0.8277]
[1743761431012,39.628,1816.9,1816.6,6.33222]
[1743761431319,39.628,1816.9,1816.6,1.460922]
[1743761431505,0.16307185,1816.8,1816.3,7.39592]
[1743761431709,0.16307185,1816.8,1816.4,5.50539]
[1743761432027,0.16307185,1816.8,1816.3,7.39593]
[1743761432316,0.16307185,1816.8,1816.3,7.39573]
[1743761432478,0.16307185,1816.8,1816.4,6.244853]
[1743761432681,0.16307185,1816.8,1816.4,5.50528]
[1743761433171,0.16307185,1816.8,1816.3,0.7891]
[1743761433378,0.16307185,1816.8,1816.6,5.50478]
[1743761433615,0.16307185,1816.8,1816.7,5.50448]
[1743761434106,0.16307185,1816.8,1816.1,1e-05]
[1743761434107,5.506,1816.2,1816.1,1e-05]
[1743761434307,0.14825444,1816.2,1816.1,1e-05]
[1743761434605,0.14825444,1816.2,1816.1,6.30461]
[1743761434905,8.50449,1816.7,1816.1,7.485716]
[1743761435205,11.97135,1816.8,1816.3,5.50569]
[1743761435574,5.50468,1816.7,1816.2,5.50595]
[1743761435775,5.5048,1816.6,1816.2,5.50595]
[1743761436016,5.5048,1816.6,1816.2,0.7485366]
[1743761436814,5.5048,1816.6,1816.2,6.2545166]
[1743761437125,5.50448,1816.7,1816.2,6.2543466]
[1743761437433,5.5051,1816.5,1816.1,6.30457]
[1743761437733,5.50596,1816.3,1816.1,1e-05]
[1743761437899,5.5058,1816.3,1816.1,1e-05]
[1743761438281,5.506,1816.2,1816.1,1e-05]
[1743761438957,5.506,1816.2,1815.3,6.05866]
[1743761438958,5.50842,1815.4,1815.3,0.55]
[1743761439109,6.6123,1815.8,1815.4,5.5084]
[1743761439431,14.01424,1815.9,1815.4,5.5084]
[1743761439600,3.0,1815.7,1815.3,6.85244]
[1743761439799,3.0,1815.7,1815.3,8.14364417]
[1743761440130,12.66924,1816.1,1815.3,8.14364417]
[1743761440131,3.0,1816.0,1815.3,1.786126]
[1743761440328,6.484,1815.8,1815.4,5.50824]
[1743761440484,11.99123,1815.8,1815.3,6.05871]
[1743761440683,6.484,1815.8,1815.4,0.8014]
[1743761440920,5.50773,1815.7,1815.3,0.55]
[1743761441085,5.50751,1815.7,1815.3,0.55]
[1743761441280,5.50842,1815.4,1815.3,0.55]
[1743761443099,3.0,1815.7,1815.4,5.50814]
[1743761443300,8.50769,1815.7,1815.3,0.55]
[1743761443622,5.50785,1815.6,1815.3,0.55]
[1743761443987,6.05929,1815.9,1815.4,5.50824]
[1743761444319,8.50741,1815.8,1815.4,5.5084]
[1743761444482,5.50763,1815.7,1815.3,0.55]
[1743761444988,11.01542,1815.7,1815.3,0.55]
[1743761445321,5.50763,1815.7,1815.3,0.55]
[1743761445619,5.50793,1815.6,1815.3,0.55]
[1743761445798,6.06072,1815.4,1815.3,0.55]
[1743761446698,5.50784,1815.6,1815.3,0.55]
[1743761446915,5.50842,1815.4,1815.3,0.3]
[1743761447201,11.56812,1815.5,1815.3,0.3]
[1743761447406,5.50842,1815.4,1815.3,0.3]
[1743761448119,6.06133,1815.2,1815.1,0.1]
[1743761448325,12.63583182,1815.1,1815.0,0.005]
[1743761448527,8.50933,1815.1,1815.0,0.005]
[1743761448706,5.50933,1815.1,1815.0,0.005]
[1743761448913,6.50375135,1815.1,1815.0,0.005]
[1743761449326,0.11734909,1815.1,1815.0,0.005]
[1743761449687,6.6123,1815.5,1815.0,5.5145]
[1743761449886,3.11877751,1815.4,1815.0,5.56970166]
[1743761450088,8.62732751,1815.4,1815.0,0.005]
[1743761450423,3.11877751,1815.4,1815.0,5.51451]
[1743761450593,0.11877751,1815.4,1815.1,5.50917]
[1743761450995,0.11877751,1815.4,1815.1,5.50932]
[1743761451245,5.50933,1815.1,1815.0,0.005]
[1743761451530,5.62750595,1815.1,1815.0,0.005]
[1743761452697,8.62750595,1815.1,1815.0,0.005]
[1743761452900,13.71787436,1815.1,1815.0,0.005]
[1743761453900,20.88017436,1815.1,1815.0,0.005]
[1743761454123,21.67683786,1815.1,1815.0,0.005]
[1743761454322,11.79664254,1815.1,1815.0,0.005]
[1743761454513,21.63563,1815.1,1815.0,0.005]
[1743761454819,21.08333,1815.1,1815.0,0.005]
[1743761455147,21.63333,1815.1,1815.0,0.005]
[1743761455311,21.08333,1815.1,1815.0,0.005]
[1743761456213,54.78363,1815.1,1815.0,0.005]
[1743761456411,62.92785987,1815.1,1815.0,1e-05]
[1743761456612,69.08758105,1815.1,1815.0,1e-05]
[1743761457018,68.3851245,1815.1,1815.0,1e-05]
[1743761457218,67.038461,1815.1,1815.0,1e-05]
[1743761457432,67.588461,1815.1,1815.0,1e-05]
[1743761457743,68.3851245,1815.1,1815.0,1e-05]
[1743761457947,69.08758105,1815.1,1815.0,1e-05]
[1743761458309,69.08758105,1815.1,1814.3,0.005]
[1743761458310,5.51146,1814.4,1814.3,0.005]
[1743761458534,15.05846,1814.4,1814.3,0.005]
[1743761458935,15.05846,1814.4,1813.1,0.1]
[1743761458936,0.5523,1814.1,1813.1,0.1]
[1743761459137,3.02420182,1813.7,1813.3,0.8061]
[1743761459368,7.87095218,1814.4,1813.9,0.8061]
[1743761459646,5.51176,1814.3,1813.9,0.8061]
[1743761459846,5.51166,1814.4,1813.9,0.8061]
[1743761459847,12.09966,1814.4,1813.9,0.8061]
[1743761460044,6.588,1814.4,1813.9,6.31906]
[1743761460284,8.53648182,1814.2,1813.9,0.8061]
[1743761460455,5.5118,1814.3,1813.9,0.8061]
[1743761460617,5.5118,1814.3,1813.9,1.438037]
[1743761461146,15.0997,1814.4,1813.9,6.951007]
[1743761461351,5.51205,1814.3,1813.9,0.8061]
[1743761461559,5.51212,1814.2,1813.9,0.8061]
[1743761462552,5.51253,1814.1,1813.5,5.51419]
[1743761462757,3.57650182,1814.2,1813.6,0.8288]
[1743761462954,11.0262,1813.9,1813.6,0.8288]
[1743761463127,5.5131,1813.9,1813.6,0.8288]
[1743761463323,5.5131,1813.9,1813.3,5.51463]
[1743761463324,3.0,1813.7,1813.3,0.8288]
[1743761463523,5.51405,1813.6,1813.1,0.1]
[1743761463722,5.51421,1813.5,1813.1,0.743511]
[1743761463961,5.51405,1813.6,1813.1,6.258911]
[1743761464171,11.02815,1813.6,1813.1,0.743511]